fUSD/lending_fUSD_20260612
["ID","MTS","AMOUNT","RATE_DAILY","PERIOD"]
[424902317,1781259042000,-1783.95,0.00014999,2]
[424902316,1781259042000,-1783.95,0.00014999,2]
[424902311,1781259042000,-1783.95,0.00014999,2]
[424902312,1781259042000,-1783.95,0.00014999,2]
[424902310,1781259042000,-1783.95,0.00014999,2]
[424902339,1781259042000,-386.43047538,0.00014999,2]
[424902320,1781259042000,-1783.95,0.00014999,2]
[424902342,1781259042000,-505.99849736,0.00014999,2]
[424902332,1781259042000,-500.0,0.00014999,2]
[424902340,1781259042000,-2000.0,0.00014999,2]
[424902369,1781259042000,-1500000.0,0.00012821,2]
[424902375,1781259042000,-500.0,0.00013698,2]
[424902376,1781259042000,-2455539.43785261,0.00015,2]
[424902373,1781259042000,-500.0,0.00013698,2]
[424902374,1781259042000,-500.0,0.00013698,2]
[424902371,1781259042000,-500.0,0.00013698,2]
[424902372,1781259042000,-500.0,0.00013698,2]
[424902370,1781259042000,-139.46,0.00013698,2]
[424902368,1781259042000,-360.54,0.00013698,2]
[424902367,1781259042000,-152.0,0.00012387,2]
[424902361,1781259042000,-3216.5170958,0.00015,2]
[424902362,1781259042000,-1220.78023802,0.00015,2]
[424902360,1781259042000,-2142.76,0.00015,2]
[424902358,1781259042000,-795.0298741,0.00015,2]
[424902359,1781259042000,-1529.7077936,0.00015,2]
[424902347,1781259042000,-500.0,0.00014999,2]
[424902357,1781259042000,-9196646.48182748,0.00015,2]
[424902354,1781259042000,-500.0,0.00014999,2]
[424902344,1781259042000,-500.0,0.00014999,2]
[424902346,1781259042000,-500.0,0.00014999,2]
[424902345,1781259042000,-500.0,0.00014999,2]
[424902341,1781259042000,-250.0,0.00014999,2]
[424902349,1781259042000,-500.0,0.00014999,2]
[424902343,1781259042000,-500.0,0.00014999,2]
[424902350,1781259042000,-500.0,0.00014999,2]
[424902353,1781259042000,-500.0,0.00014999,2]
[424902348,1781259042000,-500.0,0.00014999,2]
[424902355,1781259042000,-500.0,0.00014999,2]
[424902352,1781259042000,-500.0,0.00014999,2]
[424902356,1781259042000,-568.86606438,0.00014999,2]
[424902351,1781259042000,-500.0,0.00014999,2]
[424902383,1781259043000,-500.0,0.00013698,2]
[424902384,1781259043000,-14033.61996893,0.00015,2]
[424902385,1781259043000,-2943.38431294,0.00015,2]
[424902386,1781259043000,-500.0,0.00013698,2]
[424902387,1781259043000,-2974.94582241,0.00015,2]
[424902388,1781259043000,-2007.4015429,0.00015,2]
[424902397,1781259044000,-1162.55,0.00014988,2]
[424902391,1781259044000,-500.0,0.00013698,2]
[424902389,1781259044000,-500.0,0.00013698,2]
[424902396,1781259044000,-501.05595173,0.0001497,2]
[424902394,1781259044000,-1162.55,0.0001391,2]
[424902390,1781259044000,-500.0,0.00013698,2]
[424902392,1781259044000,-531.05929864,0.00013698,2]
[424902399,1781259044000,-1162.55,0.00014999,2]
[424902400,1781259044000,-1020.18624963,0.00014999,2]
[424902393,1781259044000,-1162.55,0.0001391,2]
[424902398,1781259044000,-1162.55,0.00014999,2]
[424902395,1781259044000,-1162.55,0.00014899,2]
[424902412,1781259045000,-1162.55,0.00014999,2]
[424902411,1781259045000,-48.93208917,0.00014999,2]
[424902410,1781259045000,-93.4316612,0.00014999,2]
[424902413,1781259046000,-592.92400365,0.00014999,2]
[424902422,1781259046000,-3968.16200173,0.00015,2]
[424902416,1781259046000,-1162.55,0.00014999,2]
[424902414,1781259046000,-569.62599635,0.00014999,2]
[424902418,1781259046000,-1162.55,0.00014999,2]
[424902415,1781259046000,-1162.55,0.00014999,2]
[424902420,1781259046000,-1162.55,0.00014999,2]
[424902421,1781259046000,-1162.55,0.00014999,2]
[424902423,1781259046000,-616.0,0.00015,2]
[424902417,1781259046000,-1162.55,0.00014999,2]
[424902430,1781259046000,-1033.50977999,0.00015,2]
[424902428,1781259046000,-239.55,0.00014999,2]
[424902427,1781259046000,-923.0,0.00014999,2]
[424902419,1781259046000,-1162.55,0.00014999,2]
[424902425,1781259046000,-739.0414055,0.00015,2]
[424902424,1781259046000,-1162.55,0.00014999,2]
[424902426,1781259046000,-397.35164284,0.00015,2]
[424902451,1781259124000,-795.0298741,0.00012599,2]
[424902453,1781259143000,-150.0,0.00012598,2]
[424902454,1781259196000,-151.0,0.00012499,2]
[424902455,1781259250000,-151.0,0.00012499,2]
[424902456,1781259304000,-151.0,0.00012499,2]
[424902459,1781259357000,-150.0,0.00012498,2]
[424902461,1781259410000,-166.36,0.00012486,2]
[424902462,1781259463000,-150.0,0.00012487,2]
[424902463,1781259517000,-1529.7077936,0.00011837,2]
[424902464,1781259537000,-1529.7077936,0.00011763,2]
[424902466,1781259667000,-1236.81,0.00011699,2]
[424902467,1781259720000,-286.07,0.00011735,2]
[424902468,1781259774000,-470.2922064,0.00011763,2]
[424902470,1781259828000,-231.06812598,0.0001178,2]
[424902471,1781259881000,-2905.72,0.00011618,2]
[424902472,1781259934000,-166.66,0.00011135,2]
[424902473,1781259998000,-166.66,0.0001137,2]
[424902474,1781260017000,-250.0,0.0001137,2]
[424902475,1781260052000,-300.0,0.0001137,2]
[424902476,1781260104000,-300.0,0.0001137,2]
[424902477,1781260158000,-347.02,0.00011357,2]
[424902478,1781260159000,-300.54830225,0.00011363,2]
[424902479,1781260159000,-5887.021505,0.0001137,2]
[424902480,1781260159000,-150.0,0.00011483,2]
[424902481,1781260159000,-329.31,0.00011505,2]
[424902482,1781260159000,-2169.96497123,0.00011505,2]
[424902484,1781260159000,-1807.77,0.0001156,2]
[424902486,1781260159000,-1000.0,0.000116,2]
[424902483,1781260159000,-169.32,0.00011526,2]
[424902489,1781260159000,-622.28,0.00011808,2]
[424902487,1781260159000,-166.66,0.00011604,2]
[424902495,1781260159000,-166.66,0.00012073,2]
[424902494,1781260159000,-196.0,0.00011937,2]
[424902493,1781260159000,-150.0,0.00011853,2]
[424902485,1781260159000,-150.0,0.00011596,2]
[424902491,1781260159000,-701.2522064,0.00011837,2]
[424902490,1781260159000,-150.0,0.00011824,2]
[424902488,1781260159000,-150.0,0.0001171,2]
[424902492,1781260159000,-166.66,0.00011839,2]
[424902496,1781260160000,-226.8123678,0.00012249,2]
[424902505,1781260160000,-175.95001781,0.00012397,2]
[424902506,1781260160000,-24984.80108856,0.00012398,2]
[424902504,1781260160000,-183.44495137,0.00012397,2]
[424902502,1781260160000,-548.74328614,0.00012397,2]
[424902503,1781260160000,-251.3571683,0.00012397,2]
[424902501,1781260160000,-2000.0,0.00012397,2]
[424902500,1781260160000,-250.0,0.00012397,2]
[424902499,1781260160000,-8173.83794364,0.0001238,2]
[424902497,1781260160000,-166.66,0.00012308,2]
[424902498,1781260160000,-152.25,0.00012329,2]
[424902507,1781260160000,-30719.50159434,0.00012398,2]
[424902508,1781260170000,-2600.21435118,0.00012398,2]
[424902509,1781260170000,-16040.89034379,0.00012398,2]
[424902512,1781260204000,450.0,0.00017332,30]
[424902515,1781260232000,-556.02436834,0.00011712,2]
[424902516,1781260232000,-1005.3639732,0.00011712,2]
[424902517,1781260232000,-1906.81165846,0.00011712,2]
[424902519,1781260232000,-167.56636632,0.00011853,2]
[424902523,1781260232000,-3468.2,0.00012298,2]
[424902521,1781260232000,-3468.2,0.00012005,2]
[424902520,1781260232000,-216.17575284,0.00011853,2]
[424902522,1781260232000,-300.0,0.00012297,2]
[424902518,1781260232000,-1433.43741035,0.00011853,2]
[424902524,1781260232000,-962.92680659,0.00012388,2]
[424902525,1781260232000,-962.92680659,0.00012389,2]
[424902530,1781260232000,-207205.51412703,0.00012398,2]
[424902531,1781260232000,-1254.41808677,0.00012398,2]
[424902529,1781260232000,-140308.6624696,0.00012398,2]
[424902532,1781260232000,-268.95559825,0.00012398,2]
[424902526,1781260232000,-150.0,0.00012397,2]
[424902527,1781260232000,-141490.84615918,0.00012398,2]
[424902528,1781260232000,-136683.32720104,0.00012398,2]
[424902551,1781260238000,-500.0,0.00012481,2]
[424902557,1781260238000,-500.0,0.00012481,2]
[424902558,1781260238000,-500.0,0.00012481,2]
[424902555,1781260238000,-500.0,0.00012481,2]
[424902552,1781260238000,-500.0,0.00012481,2]
[424902553,1781260238000,-500.0,0.00012481,2]
[424902554,1781260238000,-500.0,0.00012481,2]
[424902550,1781260238000,-500.0,0.00012481,2]
[424902549,1781260238000,-336.21909563,0.00012481,2]
[424902556,1781260238000,-500.0,0.00012481,2]
[424902545,1781260238000,-500.0,0.00012481,2]
[424902546,1781260238000,-500.0,0.00012481,2]
[424902544,1781260238000,-500.0,0.00012481,2]
[424902547,1781260238000,-500.0,0.00012481,2]
[424902543,1781260238000,-500.0,0.00012481,2]
[424902542,1781260238000,-307.05183279,0.00012399,2]
[424902540,1781260238000,-1801043.08333144,0.00012398,2]
[424902541,1781260238000,-1500000.0,0.00012399,2]
[424902548,1781260238000,-500.0,0.00012481,2]
[424902559,1781260238000,-500.0,0.00012481,2]
[424902567,1781260238000,-150.99,0.00012481,2]
[424902563,1781260238000,-500.0,0.00012481,2]
[424902561,1781260238000,-500.0,0.00012481,2]
[424902601,1781260238000,-151.0,0.00012498,2]
[424902597,1781260238000,-151.0,0.00012498,2]
[424902599,1781260238000,-151.0,0.00012498,2]
[424902595,1781260238000,-2502.71,0.00012497,2]
[424902584,1781260238000,-150.0,0.00012489,2]
[424902588,1781260238000,-9999.99,0.00012497,2]
[424902593,1781260238000,-999.99,0.00012497,2]
[424902586,1781260238000,-300.0,0.00012492,2]
[424902603,1781260238000,-151.0,0.00012498,2]
[424902582,1781260238000,-151.0,0.00012487,2]
[424902578,1781260238000,-151.0,0.00012487,2]
[424902580,1781260238000,-155.0,0.00012487,2]
[424902571,1781260238000,-152.0,0.00012487,2]
[424902606,1781260238000,-151.0,0.00012498,2]
[424902569,1781260238000,-1032.77,0.00012481,2]
[424902565,1781260238000,-235.71588977,0.00012481,2]
[424902574,1781260238000,-151.0,0.00012487,2]
[424902576,1781260238000,-299.99,0.00012487,2]
[424902590,1781260238000,-1201.53,0.00012497,2]
[424902671,1781260239000,-500.0,0.00012598,2]
[424902667,1781260239000,-162.09715988,0.00012569,2]
[424902660,1781260239000,-300.0,0.00012507,2]
[424902665,1781260239000,-300.0,0.00012507,2]
[424902673,1781260239000,-500.0,0.00012598,2]
[424902662,1781260239000,-250.0,0.00012507,2]
[424902669,1781260239000,-3468.2,0.00012591,2]
[424902675,1781260239000,-500.0,0.00012598,2]
[424902685,1781260239000,-500.0,0.00012598,2]
[424902681,1781260239000,-500.0,0.00012598,2]
[424902683,1781260239000,-500.0,0.00012598,2]
[424902687,1781260239000,-500.0,0.00012598,2]
[424902691,1781260239000,-151.0,0.00012599,2]
[424902689,1781260239000,-500.0,0.00012598,2]
[424902698,1781260239000,-500.0,0.000126,4]
[424902693,1781260239000,-152.0,0.00012599,2]
[424902650,1781260239000,-564.96724461,0.00012507,2]
[424902677,1781260239000,-500.0,0.00012598,2]
[424902648,1781260239000,-1326.71470634,0.00012499,2]
[424902634,1781260239000,-152.0,0.00012499,2]
[424902645,1781260239000,-23369.46415747,0.00012499,2]
[424902617,1781260239000,-153.0,0.00012499,2]
[424902620,1781260239000,-1284.517,0.00012499,2]
[424902608,1781260239000,-151.0,0.00012498,2]
[424902619,1781260239000,-6822.3702,0.00012499,2]
[424902615,1781260239000,-151.0,0.00012499,2]
[424902612,1781260239000,-152.0,0.00012499,2]
[424902610,1781260239000,-150.0,0.00012499,2]
[424902624,1781260239000,-4181.1272,0.00012499,2]
[424902652,1781260239000,-300.0,0.00012507,2]
[424902627,1781260239000,-2500.0,0.00012499,2]
[424902696,1781260239000,-500.0,0.00012599,2]
[424902636,1781260239000,-171.26,0.00012499,2]
[424902629,1781260239000,-151.0,0.00012499,2]
[424902638,1781260239000,-2927.908,0.00012499,2]
[424902640,1781260239000,-898.44244634,0.00012499,2]
[424902657,1781260239000,-500.0,0.00012507,2]
[424902655,1781260239000,-250.0,0.00012507,2]
[424902642,1781260239000,-7595.15621246,0.00012499,2]
[424902632,1781260239000,-150.0,0.00012499,2]
[424902702,1781260239000,-150.13333076,0.00012605,2]
[424902679,1781260239000,-500.0,0.00012598,2]
[424902710,1781260239000,-8173.8379436,0.0001274,2]
[424902771,1781260239000,-206.809712,0.00013425,2]
[424902761,1781260239000,-7595.15621246,0.00013266,2]
[424902777,1781260239000,-500.0,0.00013487,2]
[424902774,1781260239000,-8173.8379436,0.0001346,2]
[424902764,1781260239000,-23369.46415739,0.00013266,2]
[424902768,1781260239000,-1326.71470629,0.00013299,2]
[424902780,1781260239000,-150.0,0.00013488,2]
[424902784,1781260239000,-150.0,0.00013488,2]
[424902759,1781260239000,-444.230555,0.00013239,2]
[424902787,1781260239000,-150.0,0.00013488,2]
[424902797,1781260239000,-150.0,0.00013488,2]
[424902793,1781260239000,-150.0,0.00013488,2]
[424902800,1781260239000,-150.0,0.00013488,2]
[424902791,1781260239000,-150.0,0.00013488,2]
[424902795,1781260239000,-152.29573647,0.00013488,2]
[424902789,1781260239000,-150.0,0.00013488,2]
[424902805,1781260239000,-255.0,0.00013488,2]
[424902716,1781260239000,-1500.0,0.000128,4]
[424902802,1781260239000,-150.0,0.00013488,2]
[424902752,1781260239000,-150.0,0.00013151,2]
[424902782,1781260239000,-150.00000001,0.00013488,2]
[424902742,1781260239000,-23369.46415739,0.0001301,2]
[424902719,1781260239000,-31692.75655766,0.00012827,2]
[424902754,1781260239000,-1236.81,0.00013161,2]
[424902708,1781260239000,-1000.0,0.000127,4]
[424902704,1781260239000,-175.22982642,0.00012605,2]
[424902712,1781260239000,-7595.15621246,0.00012755,2]
[424902714,1781260239000,-23369.46415739,0.00012755,2]
[424902723,1781260239000,-276.03,0.00012877,2]
[424902731,1781260239000,-250.0,0.00012883,2]
[424902735,1781260239000,-2100.0,0.000129,4]
[424902721,1781260239000,-465.71051319,0.00012873,2]
[424902737,1781260239000,-166.36,0.00013001,2]
[424902726,1781260239000,-3468.2,0.00012883,2]
[424902729,1781260239000,-300.0,0.00012883,2]
[424902739,1781260239000,-7595.15621246,0.0001301,2]
[424902744,1781260239000,-8173.8379436,0.000131,2]
[424902747,1781260239000,-242.925617,0.00013151,2]
[424902733,1781260239000,-1326.71470629,0.00012899,2]
[424902749,1781260239000,-150.0,0.00013151,2]
[424902756,1781260239000,-2000.0,0.00013234,2]
[424902863,1781260240000,-150.0,0.00013692,2]
[424902884,1781260240000,-944.1,0.00013698,2]
[424902880,1781260240000,-944.1,0.00013698,2]
[424902878,1781260240000,-944.1,0.00013698,2]
[424902860,1781260240000,-307.05183278,0.0001365,2]
[424902862,1781260240000,-1027.82,0.0001368,2]
[424902882,1781260240000,-944.1,0.00013698,2]
[424902861,1781260240000,-150.0,0.00013658,2]
[424902866,1781260240000,-944.1,0.00013698,2]
[424902902,1781260240000,-500.0,0.00013698,2]
[424902870,1781260240000,-944.1,0.00013698,2]
[424902876,1781260240000,-944.1,0.00013698,2]
[424902872,1781260240000,-944.1,0.00013698,2]
[424902874,1781260240000,-944.1,0.00013698,2]
[424902888,1781260240000,-500.0,0.00013698,2]
[424902886,1781260240000,-944.1,0.00013698,2]
[424902891,1781260240000,-500.0,0.00013698,2]
[424902896,1781260240000,-500.0,0.00013698,2]
[424902858,1781260240000,-2600.21435117,0.00013649,2]
[424902868,1781260240000,-944.1,0.00013698,2]
[424902856,1781260240000,-150.0,0.00013638,2]
[424902817,1781260240000,-23369.46415739,0.00013521,2]
[424902854,1781260240000,-150.0,0.00013624,2]
[424902900,1781260240000,-500.0,0.00013698,2]
[424902807,1781260240000,-249.191263,0.00013491,2]
[424902809,1781260240000,-371.0,0.00013495,2]
[424902821,1781260240000,-10034.20291746,0.00013532,2]
[424902819,1781260240000,-150.0,0.00013522,2]
[424902823,1781260240000,-26480.42025578,0.00013532,2]
[424902811,1781260240000,-194.278159,0.00013501,2]
[424902813,1781260240000,-166.36,0.00013516,2]
[424902815,1781260240000,-7595.15621246,0.00013521,2]
[424902850,1781260240000,-150.0,0.00013624,2]
[424902825,1781260240000,-223.060672,0.00013544,2]
[424902830,1781260240000,-322.01509,0.00013544,2]
[424902832,1781260240000,-484.030181,0.00013544,2]
[424902834,1781260240000,-150.0,0.00013556,2]
[424902847,1781260240000,-328.386397,0.00013611,2]
[424902845,1781260240000,-244.193198,0.00013611,2]
[424902836,1781260240000,-150.0,0.0001359,2]
[424902839,1781260240000,-150.0,0.00013595,2]
[424902842,1781260240000,-160.0,0.00013611,2]
[424902852,1781260240000,-150.0,0.00013624,2]
[424902827,1781260240000,-160.0,0.00013544,2]
[424902898,1781260240000,-500.0,0.00013698,2]
[424902962,1781260240000,-500.0,0.00013698,2]
[424902904,1781260240000,-500.0,0.00013698,2]
[424902960,1781260240000,-556.76587923,0.00013698,2]
[424902955,1781260240000,-500.0,0.00013698,2]
[424903002,1781260240000,-502.53527372,0.00013698,2]
[424902957,1781260240000,-500.0,0.00013698,2]
[424902969,1781260240000,-500.0,0.00013698,2]
[424902981,1781260240000,-500.0,0.00013698,2]
[424902983,1781260240000,-500.0,0.00013698,2]
[424902977,1781260240000,-238.7383011,0.00013698,2]
[424902972,1781260240000,-500.0,0.00013698,2]
[424902974,1781260240000,-515.12373106,0.00013698,2]
[424902985,1781260240000,-298.73640361,0.00013698,2]
[424902979,1781260240000,-500.0,0.00013698,2]
[424902988,1781260240000,-500.0,0.00013698,2]
[424902990,1781260240000,-500.0,0.00013698,2]
[424902993,1781260240000,-500.0,0.00013698,2]
[424902995,1781260240000,-500.0,0.00013698,2]
[424903000,1781260240000,-500.0,0.00013698,2]
[424902997,1781260240000,-500.0,0.00013698,2]
[424902894,1781260240000,-500.0,0.00013698,2]
[424902964,1781260240000,-500.0,0.00013698,2]
[424902967,1781260240000,-500.0,0.00013698,2]
[424903004,1781260240000,-500.0,0.00013698,2]
[424902950,1781260240000,-500.0,0.00013698,2]
[424902907,1781260240000,-500.0,0.00013698,2]
[424902909,1781260240000,-500.0,0.00013698,2]
[424902915,1781260240000,-1783.95,0.00013698,2]
[424902913,1781260240000,-1783.95,0.00013698,2]
[424902911,1781260240000,-500.0,0.00013698,2]
[424902924,1781260240000,-1783.95,0.00013698,2]
[424902919,1781260240000,-1783.95,0.00013698,2]
[424902921,1781260240000,-1783.95,0.00013698,2]
[424902917,1781260240000,-1783.95,0.00013698,2]
[424902926,1781260240000,-1783.95,0.00013698,2]
[424902943,1781260240000,-500.0,0.00013698,2]
[424902947,1781260240000,-500.0,0.00013698,2]
[424902928,1781260240000,-1783.95,0.00013698,2]
[424902945,1781260240000,-500.0,0.00013698,2]
[424902938,1781260240000,-500.0,0.00013698,2]
[424902932,1781260240000,-1783.95,0.00013698,2]
[424902953,1781260240000,-500.0,0.00013698,2]
[424902930,1781260240000,-1783.95,0.00013698,2]
[424902934,1781260240000,-1783.95,0.00013698,2]
[424902940,1781260240000,-500.0,0.00013698,2]
[424902936,1781260240000,-500.0,0.00013698,2]
[424903075,1781260241000,-500.0,0.00013698,2]
[424903063,1781260241000,-591.74,0.00013698,2]
[424903061,1781260241000,-591.74,0.00013698,2]
[424903068,1781260241000,-591.74,0.00013698,2]
[424903071,1781260241000,-500.0,0.00013698,2]
[424903073,1781260241000,-500.0,0.00013698,2]
[424903077,1781260241000,-500.0,0.00013698,2]
[424903066,1781260241000,-591.74,0.00013698,2]
[424903094,1781260241000,-500.0,0.00013698,2]
[424903086,1781260241000,-500.0,0.00013698,2]
[424903083,1781260241000,-500.0,0.00013698,2]
[424903081,1781260241000,-500.0,0.00013698,2]
[424903088,1781260241000,-500.0,0.00013698,2]
[424903090,1781260241000,-500.0,0.00013698,2]
[424903092,1781260241000,-500.0,0.00013698,2]
[424903097,1781260241000,-500.0,0.00013698,2]
[424903099,1781260241000,-500.0,0.00013698,2]
[424903051,1781260241000,-591.74,0.00013698,2]
[424903079,1781260241000,-500.0,0.00013698,2]
[424903056,1781260241000,-591.74,0.00013698,2]
[424903030,1781260241000,-591.74,0.00013698,2]
[424903058,1781260241000,-591.74,0.00013698,2]
[424903105,1781260241000,-500.0,0.00013698,2]
[424903006,1781260241000,-500.0,0.00013698,2]
[424903011,1781260241000,-500.0,0.00013698,2]
[424903018,1781260241000,-500.0,0.00013698,2]
[424903016,1781260241000,-500.0,0.00013698,2]
[424903020,1781260241000,-500.0,0.00013698,2]
[424903023,1781260241000,-500.0,0.00013698,2]
[424903009,1781260241000,-500.0,0.00013698,2]
[424903053,1781260241000,-591.74,0.00013698,2]
[424903037,1781260241000,-591.74,0.00013698,2]
[424903025,1781260241000,-500.0,0.00013698,2]
[424903033,1781260241000,-591.74,0.00013698,2]
[424903035,1781260241000,-591.74,0.00013698,2]
[424903041,1781260241000,-591.74,0.00013698,2]
[424903044,1781260241000,-591.74,0.00013698,2]
[424903028,1781260241000,-500.0,0.00013698,2]
[424903046,1781260241000,-591.74,0.00013698,2]
[424903048,1781260241000,-591.74,0.00013698,2]
[424903039,1781260241000,-591.74,0.00013698,2]
[424903103,1781260241000,-500.0,0.00013698,2]
[424903014,1781260241000,-500.0,0.00013698,2]
[424903108,1781260241000,-500.0,0.00013698,2]
[424903153,1781260241000,-524.58,0.00013698,2]
[424903154,1781260241000,-524.58,0.00013698,2]
[424903156,1781260241000,-524.58,0.00013698,2]
[424903155,1781260241000,-524.58,0.00013698,2]
[424903157,1781260241000,-524.58,0.00013698,2]
[424903158,1781260241000,-524.58,0.00013698,2]
[424903165,1781260241000,-567.54,0.00013698,2]
[424903160,1781260241000,-524.58,0.00013698,2]
[424903152,1781260241000,-524.58,0.00013698,2]
[424903161,1781260241000,-524.58,0.00013698,2]
[424903164,1781260241000,-567.54,0.00013698,2]
[424903162,1781260241000,-524.58,0.00013698,2]
[424903166,1781260241000,-567.54,0.00013698,2]
[424903168,1781260241000,-567.54,0.00013698,2]
[424903167,1781260241000,-567.54,0.00013698,2]
[424903169,1781260241000,-567.54,0.00013698,2]
[424903170,1781260241000,-567.54,0.00013698,2]
[424903101,1781260241000,-254.97411398,0.00013698,2]
[424903163,1781260241000,-524.58,0.00013698,2]
[424903150,1781260241000,-360.35654585,0.00013698,2]
[424903171,1781260241000,-567.54,0.00013698,2]
[424903149,1781260241000,-505.99849736,0.00013698,2]
[424903151,1781260241000,-325.58534652,0.00013698,2]
[424903110,1781260241000,-500.0,0.00013698,2]
[424903113,1781260241000,-500.0,0.00013698,2]
[424903119,1781260241000,-564.37,0.00013698,2]
[424903123,1781260241000,-564.37,0.00013698,2]
[424903121,1781260241000,-564.37,0.00013698,2]
[424903115,1781260241000,-350.9778081,0.00013698,2]
[424903125,1781260241000,-564.37,0.00013698,2]
[424903127,1781260241000,-564.37,0.00013698,2]
[424903117,1781260241000,-564.37,0.00013698,2]
[424903136,1781260241000,-564.37,0.00013698,2]
[424903138,1781260241000,-564.37,0.00013698,2]
[424903134,1781260241000,-564.37,0.00013698,2]
[424903140,1781260241000,-500.0,0.00013698,2]
[424903132,1781260241000,-564.37,0.00013698,2]
[424903142,1781260241000,-500.0,0.00013698,2]
[424903146,1781260241000,-500.0,0.00013698,2]
[424903148,1781260241000,-500.0,0.00013698,2]
[424903130,1781260241000,-564.37,0.00013698,2]
[424903145,1781260241000,-500.0,0.00013698,2]
[424903189,1781260242000,-500.0,0.00013698,2]
[424903190,1781260242000,-500.0,0.00013698,2]
[424903194,1781260242000,-529.75,0.00013698,2]
[424903195,1781260242000,-500.0,0.00013698,2]
[424903198,1781260242000,-160.31067582,0.00013698,2]
[424903197,1781260242000,-172.1676913,0.00013698,2]
[424903201,1781260242000,-500.0,0.00013698,2]
[424903202,1781260242000,-500.0,0.00013698,2]
[424903200,1781260242000,-500.0,0.00013698,2]
[424903204,1781260242000,-500.0,0.00013698,2]
[424903199,1781260242000,-500.0,0.00013698,2]
[424903205,1781260242000,-500.0,0.00013698,2]
[424903193,1781260242000,-500.0,0.00013698,2]
[424903206,1781260242000,-500.0,0.00013698,2]
[424903196,1781260242000,-500.0,0.00013698,2]
[424903188,1781260242000,-500.0,0.00013698,2]
[424903179,1781260242000,-500.0,0.00013698,2]
[424903191,1781260242000,-457.12873569,0.00013698,2]
[424903207,1781260242000,-500.0,0.00013698,2]
[424903172,1781260242000,-567.54,0.00013698,2]
[424903173,1781260242000,-567.54,0.00013698,2]
[424903174,1781260242000,-567.54,0.00013698,2]
[424903175,1781260242000,-500.0,0.00013698,2]
[424903176,1781260242000,-500.0,0.00013698,2]
[424903178,1781260242000,-500.0,0.00013698,2]
[424903192,1781260242000,-500.0,0.00013698,2]
[424903177,1781260242000,-500.0,0.00013698,2]
[424903182,1781260242000,-500.0,0.00013698,2]
[424903183,1781260242000,-500.0,0.00013698,2]
[424903180,1781260242000,-500.0,0.00013698,2]
[424903184,1781260242000,-500.0,0.00013698,2]
[424903185,1781260242000,-500.0,0.00013698,2]
[424903187,1781260242000,-500.0,0.00013698,2]
[424903186,1781260242000,-500.0,0.00013698,2]
[424903181,1781260242000,-500.0,0.00013698,2]
[424903208,1781260242000,-500.0,0.00013698,2]
[424903203,1781260242000,-500.0,0.00013698,2]
[424903215,1781260242000,-500.0,0.00013698,2]
[424903240,1781260242000,-500.0,0.00013698,2]
[424903236,1781260242000,-500.0,0.00013698,2]
[424903242,1781260242000,-500.0,0.00013698,2]
[424903238,1781260242000,-500.0,0.00013698,2]
[424903237,1781260242000,-500.0,0.00013698,2]
[424903243,1781260242000,-506.97171654,0.00013698,2]
[424903235,1781260242000,-500.0,0.00013698,2]
[424903241,1781260242000,-500.0,0.00013698,2]